[Event "Early-Titled-Tuesday-Blitz-April-02-2024"]
[Site "Chess.com"]
[Date "2024.04.02"]
[Round "4"]
[White "JimDiGrease"]
[Black "wadsy27"]
[Result "1-0"]
[WhiteElo "2957"]
[BlackElo "2612"]
[TimeControl "180+1"]
[EndTime "8:39:27 PDT"]
[Termination "JimDiGrease won by resignation"]

1. d4 {[%clk 0:03:00.9]} 1... Nf6 {[%clk 0:02:59.2]} 2. c4 {[%clk 0:03:01.5]}
2... c5 {[%clk 0:02:59.6]} 3. d5 {[%clk 0:03:01.7]} 3... e6 {[%clk 0:03:00.2]}
4. Bf4 {[%clk 0:03:01.6]} 4... exd5 {[%clk 0:02:59.2]} 5. cxd5 {[%clk
0:03:02.5]} 5... d6 {[%clk 0:02:59.5]} 6. e4 {[%clk 0:03:03.2]} 6... a6 {[%clk
0:02:57.1]} 7. Bd3 {[%clk 0:02:50.6]} 7... b5 {[%clk 0:02:53.9]} 8. Nf3 {[%clk
0:02:47.1]} 8... Bg4 {[%clk 0:02:43.4]} 9. Nbd2 {[%clk 0:02:47.1]} 9... Nbd7
{[%clk 0:02:38.4]} 10. O-O {[%clk 0:02:42.3]} 10... h6 {[%clk 0:02:33.9]} 11. a4
{[%clk 0:02:37.2]} 11... c4 {[%clk 0:02:26.2]} 12. Be2 {[%clk 0:02:32.8]} 12...
g5 {[%clk 0:02:23.5]} 13. Bg3 {[%clk 0:02:23.1]} 13... Bxf3 {[%clk 0:02:07.8]}
14. Nxf3 {[%clk 0:02:09.6]} 14... Nxe4 {[%clk 0:02:02]} 15. Re1 {[%clk
0:01:35.7]} 15... Be7 {[%clk 0:01:46.8]} 16. Qd4 {[%clk 0:01:21.4]} 16... Ndf6
{[%clk 0:01:45.8]} 17. Bxc4 {[%clk 0:00:52.3]} 17... Nxg3 {[%clk 0:01:38.7]} 18.
Qxf6 {[%clk 0:00:51.4]} 18... O-O {[%clk 0:01:35.4]} 19. Qxe7 {[%clk 0:00:16.1]}
19... Qxe7 {[%clk 0:01:32.4]} 20. Rxe7 {[%clk 0:00:17]} 20... Nf5 {[%clk
0:01:29.6]} 21. Rc7 {[%clk 0:00:17.3]} 21... bxc4 {[%clk 0:01:28.7]} 22. Rxc4
{[%clk 0:00:18.2]} 22... a5 {[%clk 0:01:17.5]} 23. Nd2 {[%clk 0:00:15.6]} 23...
Rfb8 {[%clk 0:01:12.1]} 24. b3 {[%clk 0:00:15.7]} 24... Ne7 {[%clk 0:01:05.3]}
25. Rd4 {[%clk 0:00:16]} 25... Rb4 {[%clk 0:00:58.5]} 26. Rxb4 {[%clk
0:00:13.8]} 26... axb4 {[%clk 0:00:59.4]} 27. Ne4 {[%clk 0:00:13.6]} 27... Nxd5
{[%clk 0:00:57.4]} 28. Nxd6 {[%clk 0:00:14]} 28... Nc3 {[%clk 0:00:51.4]} 29.
Nc4 {[%clk 0:00:13.5]} 29... Ne2+ {[%clk 0:00:47.5]} 30. Kf1 {[%clk 0:00:13.2]}
30... Nd4 {[%clk 0:00:47.5]} 31. Nd2 {[%clk 0:00:11.1]} 31... Kf8 {[%clk
0:00:31.3]} 32. Rc1 {[%clk 0:00:11.4]} 32... Rd8 {[%clk 0:00:21.3]} 33. Rc4
{[%clk 0:00:11.7]} 33... Ke7 {[%clk 0:00:16.2]} 34. Rxb4 {[%clk 0:00:09.6]}
34... Nc6 {[%clk 0:00:16.4]} 35. Re4+ {[%clk 0:00:09]} 35... Kd6 {[%clk
0:00:16.6]} 36. Rc4 {[%clk 0:00:07.5]} 36... Kc7 {[%clk 0:00:12.8]} 37. Ne4
{[%clk 0:00:07.2]} 37... Kb6 {[%clk 0:00:12.1]} 38. Nc3 {[%clk 0:00:06.9]} 38...
Na5 {[%clk 0:00:10.5]} 39. Rb4+ {[%clk 0:00:07]} 39... Ka6 {[%clk 0:00:08.3]}
40. Rb5 {[%clk 0:00:06.3]} 40... Rd3 {[%clk 0:00:08.4]} 41. Nd5 {[%clk
0:00:04.9]} 41... Rxb3 {[%clk 0:00:07.3]} 42. Nb4+ {[%clk 0:00:05.4]} 42... Ka7
{[%clk 0:00:06.7]} 43. Rxa5+ {[%clk 0:00:06]} 43... Kb6 {[%clk 0:00:07.1]} 44.
Rb5+ {[%clk 0:00:06.9]} 44... Ka7 {[%clk 0:00:06.7]} 45. a5 {[%clk 0:00:07.6]}
45... Ka8 {[%clk 0:00:05.9]} 46. a6 {[%clk 0:00:07.2]} 46... f5 {[%clk
0:00:04.5]} 47. Rb7 {[%clk 0:00:07.5]} 47... f4 {[%clk 0:00:03.7]} 48. Nd5
{[%clk 0:00:07.5]} 1-0

[Event "Early-Titled-Tuesday-Blitz-April-02-2024"]
[Site "Chess.com"]
[Date "2024.04.02"]
[Round "4"]
[White "GnowReopard"]
[Black "Orest_Vovk"]
[Result "1-0"]
[WhiteElo "2763"]
[BlackElo "2578"]
[TimeControl "180+1"]
[EndTime "8:39:28 PDT"]
[Termination "GnowReopard won on time"]

1. c4 {[%clk 0:03:00.9]} 1... g5 {[%clk 0:02:51.6]} 2. d4 {[%clk 0:02:59.1]}
2... h6 {[%clk 0:02:49.7]} 3. Nc3 {[%clk 0:02:58.9]} 3... Bg7 {[%clk 0:02:49.9]}
4. e4 {[%clk 0:02:54.8]} 4... c5 {[%clk 0:02:49.6]} 5. Nge2 {[%clk 0:02:44.2]}
5... Nc6 {[%clk 0:02:48.9]} 6. Be3 {[%clk 0:02:42.8]} 6... cxd4 {[%clk
0:02:45.9]} 7. Nxd4 {[%clk 0:02:42.7]} 7... Qa5 {[%clk 0:02:43.2]} 8. Be2 {[%clk
0:02:38.3]} 8... d6 {[%clk 0:02:42.3]} 9. Qd2 {[%clk 0:02:36.8]} 9... Nf6 {[%clk
0:02:31.4]} 10. f3 {[%clk 0:02:35.7]} 10... Bd7 {[%clk 0:02:30.3]} 11. O-O
{[%clk 0:02:35.2]} 11... Qe5 {[%clk 0:02:11.7]} 12. Rad1 {[%clk 0:02:28.9]}
12... Nh5 {[%clk 0:02:06.3]} 13. Ncb5 {[%clk 0:02:06.4]} 13... Nf4 {[%clk
0:01:42.4]} 14. Nxc6 {[%clk 0:01:55]} 14... Bxc6 {[%clk 0:01:31]} 15. Bd4 {[%clk
0:01:49.2]} 15... Qxd4+ {[%clk 0:01:29.4]} 16. Nxd4 {[%clk 0:01:46.5]} 16...
Bxd4+ {[%clk 0:01:30.3]} 17. Kh1 {[%clk 0:01:46.2]} 17... Be5 {[%clk 0:01:08.8]}
18. b4 {[%clk 0:01:45.7]} 18... b6 {[%clk 0:00:50.2]} 19. c5 {[%clk 0:01:45.1]}
19... Nxe2 {[%clk 0:00:47.4]} 20. Qxe2 {[%clk 0:01:44.2]} 20... dxc5 {[%clk
0:00:39.8]} 21. bxc5 {[%clk 0:01:44.1]} 21... b5 {[%clk 0:00:40.1]} 22. Rd5
{[%clk 0:01:36.8]} 22... Bc7 {[%clk 0:00:28.2]} 23. Rfd1 {[%clk 0:01:27.3]}
23... a5 {[%clk 0:00:23.2]} 24. g3 {[%clk 0:01:18.6]} 24... a4 {[%clk
0:00:18.3]} 25. a3 {[%clk 0:01:17.4]} 25... f6 {[%clk 0:00:12.1]} 26. Kg2 {[%clk
0:01:16.9]} 26... h5 {[%clk 0:00:10.5]} 27. h3 {[%clk 0:01:11.8]} 27... h4
{[%clk 0:00:09.2]} 28. g4 {[%clk 0:01:11.6]} 28... Bf4 {[%clk 0:00:09.2]} 29.
Qb2 {[%clk 0:01:09.2]} 29... Rb8 {[%clk 0:00:06.5]} 30. Rf5 {[%clk 0:01:08.2]}
30... Bg3 {[%clk 0:00:04.7]} 31. Rxg5 {[%clk 0:01:04.9]} 31... Kf7 {[%clk
0:00:02.8]} 32. Rf5 {[%clk 0:01:00.4]} 32... Rhd8 {[%clk 0:00:02.9]} 33. Rxd8
{[%clk 0:00:46.8]} 33... Rxd8 {[%clk 0:00:03.8]} 34. g5 {[%clk 0:00:46.5]} 34...
Rg8 {[%clk 0:00:03.2]} 35. Kf1 {[%clk 0:00:37]} 35... Bd7 {[%clk 0:00:03]} 36.
gxf6 {[%clk 0:00:29.1]} 36... Bxf5 {[%clk 0:00:03]} 37. exf5 {[%clk 0:00:29.7]}
37... exf6 {[%clk 0:00:03.5]} 38. Qxb5 {[%clk 0:00:29.8]} 38... Re8 {[%clk
0:00:03.6]} 39. Qd7+ {[%clk 0:00:27.6]} 39... Re7 {[%clk 0:00:03.8]} 40. Qd5+
{[%clk 0:00:27.7]} 40... Kg7 {[%clk 0:00:04.1]} 41. Qd2 {[%clk 0:00:21.2]} 41...
Rc7 {[%clk 0:00:02.3]} 42. c6 {[%clk 0:00:21.3]} 42... Kf7 {[%clk 0:00:02.7]}
43. Qd5+ {[%clk 0:00:21]} 43... Ke7 {[%clk 0:00:02.9]} 44. Qe6+ {[%clk
0:00:20.5]} 44... Kf8 {[%clk 0:00:01.9]} 45. Qxf6+ {[%clk 0:00:20.6]} 45... Ke8
{[%clk 0:00:02.5]} 46. Qe6+ {[%clk 0:00:20.7]} 46... Kf8 {[%clk 0:00:02.8]} 47.
f6 {[%clk 0:00:20.6]} 1-0

[Event "Early-Titled-Tuesday-Blitz-April-02-2024"]
[Site "Chess.com"]
[Date "2024.04.02"]
[Round "4"]
[White "IsaqueGoncalvesSanto"]
[Black "mertfelin"]
[Result "0-1"]
[WhiteElo "1906"]
[BlackElo "2278"]
[TimeControl "180+1"]
[EndTime "8:39:31 PDT"]
[Termination "mertfelin won on time"]

1. d4 {[%clk 0:03:00.1]} 1... d5 {[%clk 0:03:00.3]} 2. c4 {[%clk 0:02:59.8]}
2... e6 {[%clk 0:03:00.7]} 3. Nc3 {[%clk 0:02:59.1]} 3... Be7 {[%clk 0:03:01]}
4. Nf3 {[%clk 0:02:55.9]} 4... Nf6 {[%clk 0:03:01.2]} 5. Bf4 {[%clk 0:02:51.8]}
5... O-O {[%clk 0:03:00.5]} 6. e3 {[%clk 0:02:51.2]} 6... b6 {[%clk 0:03:00.8]}
7. cxd5 {[%clk 0:02:44.5]} 7... Nxd5 {[%clk 0:03:01.2]} 8. Nxd5 {[%clk
0:02:43.8]} 8... Qxd5 {[%clk 0:03:02.1]} 9. a3 {[%clk 0:02:37]} 9... Ba6 {[%clk
0:02:51]} 10. Bxc7 {[%clk 0:02:29.4]} 10... Bxf1 {[%clk 0:02:51.1]} 11. Kxf1
{[%clk 0:02:29.3]} 11... Qc4+ {[%clk 0:02:51.4]} 12. Kg1 {[%clk 0:02:22.6]}
12... Qxc7 {[%clk 0:02:51.8]} 13. Rc1 {[%clk 0:02:22.2]} 13... Qd6 {[%clk
0:02:47.2]} 14. Qa4 {[%clk 0:02:15.2]} 14... a5 {[%clk 0:02:12.4]} 15. Ne5
{[%clk 0:02:08.7]} 15... Bf6 {[%clk 0:02:05.6]} 16. Nc4 {[%clk 0:01:53.1]} 16...
Rc8 {[%clk 0:01:58.5]} 17. h3 {[%clk 0:01:44.9]} 17... Qd7 {[%clk 0:01:59.1]}
18. Qd1 {[%clk 0:01:20.8]} 18... Qc7 {[%clk 0:01:45.8]} 19. Rc3 {[%clk 0:01:12]}
19... Qd8 {[%clk 0:01:34]} 20. Qb3 {[%clk 0:01:05.1]} 20... Nd7 {[%clk
0:01:30.6]} 21. Kh2 {[%clk 0:00:58.5]} 21... e5 {[%clk 0:01:23]} 22. d5 {[%clk
0:00:57.8]} 22... e4 {[%clk 0:01:20.9]} 23. Rcc1 {[%clk 0:00:55.6]} 23... Rab8
{[%clk 0:00:59.4]} 24. Qb5 {[%clk 0:00:52.1]} 24... Nc5 {[%clk 0:00:55.4]} 25.
d6 {[%clk 0:00:43]} 25... Nd3 {[%clk 0:00:49.9]} 26. Rc2 {[%clk 0:00:41.4]}
26... Rc5 {[%clk 0:00:46.9]} 27. Qa6 {[%clk 0:00:38.2]} 27... Ne5 {[%clk
0:00:39.7]} 28. Rd1 {[%clk 0:00:26.4]} 28... Nxc4 {[%clk 0:00:36.7]} 29. Rxc4
{[%clk 0:00:25.1]} 29... Rxc4 {[%clk 0:00:34.7]} 30. Qxc4 {[%clk 0:00:24.5]}
30... Be5+ {[%clk 0:00:31.7]} 31. Kg1 {[%clk 0:00:17.2]} 31... Bxb2 {[%clk
0:00:20.4]} 32. Qc7 {[%clk 0:00:15.9]} 32... Bxa3 {[%clk 0:00:16.8]} 33. Qc4
{[%clk 0:00:09.8]} 33... b5 {[%clk 0:00:12.6]} 34. Qxe4 {[%clk 0:00:09.8]} 34...
h6 {[%clk 0:00:11.8]} 35. d7 {[%clk 0:00:09.9]} 35... Be7 {[%clk 0:00:10.9]} 36.
Qc6 {[%clk 0:00:09.6]} 36... b4 {[%clk 0:00:10.2]} 37. Rc1 {[%clk 0:00:09.6]}
37... b3 {[%clk 0:00:09.7]} 38. Rb1 {[%clk 0:00:08.2]} 38... b2 {[%clk
0:00:08.7]} 39. g3 {[%clk 0:00:06]} 39... Bf6 {[%clk 0:00:08.3]} 40. f4 {[%clk
0:00:05]} 40... Rb6 {[%clk 0:00:07]} 41. Qa4 {[%clk 0:00:01.6]} 41... Rd6 {[%clk
0:00:05.8]} 42. Rxb2 {[%clk 0:00:01.2]} 42... Bxb2 {[%clk 0:00:04.6]} 0-1

[Event "Early-Titled-Tuesday-Blitz-April-02-2024"]
[Site "Chess.com"]
[Date "2024.04.02"]
[Round "4"]
[White "Mikhail_Bryakin"]
[Black "sebsep"]
[Result "0-1"]
[WhiteElo "2895"]
[BlackElo "2626"]
[TimeControl "180+1"]
[EndTime "8:39:33 PDT"]
[Termination "sebsep won by checkmate"]

1. e4 {[%clk 0:02:57]} 1... e5 {[%clk 0:02:59.9]} 2. Nf3 {[%clk 0:02:55.4]} 2...
Nc6 {[%clk 0:03:00.3]} 3. Nc3 {[%clk 0:02:54.2]} 3... Nf6 {[%clk 0:02:59.6]} 4.
Bb5 {[%clk 0:02:53.9]} 4... Bd6 {[%clk 0:02:59.1]} 5. O-O {[%clk 0:02:53.2]}
5... O-O {[%clk 0:02:57.6]} 6. d3 {[%clk 0:02:52.2]} 6... a6 {[%clk 0:02:56.6]}
7. Ba4 {[%clk 0:02:51]} 7... h6 {[%clk 0:02:56.4]} 8. h3 {[%clk 0:02:50.4]} 8...
Re8 {[%clk 0:02:56.5]} 9. Be3 {[%clk 0:02:49.6]} 9... Bf8 {[%clk 0:02:56]} 10.
a3 {[%clk 0:02:17.9]} 10... d5 {[%clk 0:02:40.6]} 11. exd5 {[%clk 0:02:17.7]}
11... Nxd5 {[%clk 0:02:40.2]} 12. Nxd5 {[%clk 0:02:18.1]} 12... Qxd5 {[%clk
0:02:39.1]} 13. Bb3 {[%clk 0:02:19]} 13... Qd8 {[%clk 0:02:28.2]} 14. Qe2 {[%clk
0:02:18.4]} 14... Be6 {[%clk 0:02:27.7]} 15. Bxe6 {[%clk 0:02:16.9]} 15... Rxe6
{[%clk 0:02:28.6]} 16. Rfe1 {[%clk 0:02:16.9]} 16... Qf6 {[%clk 0:02:27.9]} 17.
Rad1 {[%clk 0:02:15]} 17... Rae8 {[%clk 0:02:26.9]} 18. Nd2 {[%clk 0:02:13.7]}
18... Qg6 {[%clk 0:02:23.9]} 19. Qg4 {[%clk 0:02:13.3]} 19... f5 {[%clk
0:02:20.2]} 20. Qxg6 {[%clk 0:02:12.7]} 20... Rxg6 {[%clk 0:02:21.1]} 21. f3
{[%clk 0:02:11.4]} 21... Rge6 {[%clk 0:02:18.7]} 22. Kf1 {[%clk 0:02:10.7]}
22... Kf7 {[%clk 0:02:18.2]} 23. g4 {[%clk 0:02:10.4]} 23... g6 {[%clk
0:02:17.6]} 24. Nb3 {[%clk 0:02:08.1]} 24... b6 {[%clk 0:02:04.1]} 25. Bf2
{[%clk 0:02:04.5]} 25... h5 {[%clk 0:02:02]} 26. Re2 {[%clk 0:01:58.2]} 26... a5
{[%clk 0:01:50]} 27. c3 {[%clk 0:01:55.7]} 27... Rd8 {[%clk 0:01:41.3]} 28. Nc1
{[%clk 0:01:54.9]} 28... Be7 {[%clk 0:01:35.8]} 29. Rde1 {[%clk 0:01:53.8]}
29... Bf6 {[%clk 0:01:28.2]} 30. Be3 {[%clk 0:01:52.3]} 30... Ne7 {[%clk
0:01:23]} 31. g5 {[%clk 0:01:44.2]} 31... Bg7 {[%clk 0:01:22.7]} 32. h4 {[%clk
0:01:44.9]} 32... Nc8 {[%clk 0:01:17.2]} 33. Bf4 {[%clk 0:01:41.4]} 33... Rde8
{[%clk 0:01:16.6]} 34. d4 {[%clk 0:01:40.7]} 34... exf4 {[%clk 0:01:11.9]} 35.
Kf2 {[%clk 0:01:33.7]} 35... Bf8 {[%clk 0:01:08]} 36. Rxe6 {[%clk 0:01:31.1]}
36... Rxe6 {[%clk 0:01:08.9]} 37. Rd1 {[%clk 0:01:31.8]} 37... Bd6 {[%clk
0:01:08.5]} 38. Nd3 {[%clk 0:01:26.8]} 38... b5 {[%clk 0:01:06.3]} 39. a4 {[%clk
0:01:22]} 39... bxa4 {[%clk 0:00:49.3]} 40. c4 {[%clk 0:01:21.9]} 40... c6
{[%clk 0:00:50]} 41. Ra1 {[%clk 0:01:01.5]} 41... Re3 {[%clk 0:00:49.7]} 42. Nc1
{[%clk 0:01:02.1]} 42... a3 {[%clk 0:00:49.1]} 43. b3 {[%clk 0:00:58.4]} 43...
Bb4 {[%clk 0:00:47.4]} 44. Ra2 {[%clk 0:00:52.7]} 44... Nb6 {[%clk 0:00:37]} 45.
Ra1 {[%clk 0:00:51.7]} 45... Nd7 {[%clk 0:00:36.7]} 46. Ra2 {[%clk 0:00:51.4]}
46... Nf8 {[%clk 0:00:36.9]} 47. Ra1 {[%clk 0:00:42.1]} 47... Ne6 {[%clk
0:00:36.4]} 48. Ne2 {[%clk 0:00:43]} 48... Rxb3 {[%clk 0:00:31.7]} 49. d5 {[%clk
0:00:43.3]} 49... cxd5 {[%clk 0:00:29.6]} 50. cxd5 {[%clk 0:00:44.2]} 50... Bc5+
{[%clk 0:00:29.8]} 51. Kf1 {[%clk 0:00:44.4]} 51... Nd4 {[%clk 0:00:28.9]} 52.
Nc1 {[%clk 0:00:38.9]} 52... Rxf3+ {[%clk 0:00:27]} 53. Kg2 {[%clk 0:00:39.6]}
53... Rg3+ {[%clk 0:00:26.5]} 54. Kf1 {[%clk 0:00:40.2]} 54... Ke7 {[%clk
0:00:25.8]} 55. Ra2 {[%clk 0:00:38.2]} 55... Kd6 {[%clk 0:00:25.7]} 56. Ra1
{[%clk 0:00:35.3]} 56... Kxd5 {[%clk 0:00:25.7]} 57. Rb1 {[%clk 0:00:36]} 57...
f3 {[%clk 0:00:24.3]} 58. Nd3 {[%clk 0:00:34.4]} 58... Ne2 {[%clk 0:00:18.1]}
59. Nxc5 {[%clk 0:00:24.9]} 59... Rg1+ {[%clk 0:00:17.9]} 60. Kf2 {[%clk
0:00:25.6]} 60... Rxb1 {[%clk 0:00:18.4]} 61. Nd3 {[%clk 0:00:26.3]} 61... a2
{[%clk 0:00:18.3]} 62. Nf4+ {[%clk 0:00:25.8]} 62... Ke4 {[%clk 0:00:18.6]} 63.
Ne6 {[%clk 0:00:22.8]} 63... Rf1+ {[%clk 0:00:18.2]} 64. Kxf1 {[%clk 0:00:22.5]}
64... a1=Q+ {[%clk 0:00:19.1]} 65. Kf2 {[%clk 0:00:22.4]} 65... Qg1# {[%clk
0:00:20]} 0-1

[Event "Early-Titled-Tuesday-Blitz-April-02-2024"]
[Site "Chess.com"]
[Date "2024.04.02"]
[Round "4"]
[White "KarolKacprzak"]
[Black "GMKrikor"]
[Result "0-1"]
[WhiteElo "2736"]
[BlackElo "2916"]
[TimeControl "180+1"]
[EndTime "8:39:34 PDT"]
[Termination "GMKrikor won by resignation"]

1. e4 {[%clk 0:02:58.9]} 1... c5 {[%clk 0:02:59.9]} 2. Nf3 {[%clk 0:02:58.4]}
2... Nc6 {[%clk 0:03:00.1]} 3. d4 {[%clk 0:02:57.9]} 3... cxd4 {[%clk
0:03:00.7]} 4. Nxd4 {[%clk 0:02:58.8]} 4... Nf6 {[%clk 0:03:01.2]} 5. Nc3 {[%clk
0:02:58.6]} 5... e5 {[%clk 0:03:01.4]} 6. Ndb5 {[%clk 0:02:58.3]} 6... d6 {[%clk
0:03:01.1]} 7. Na3 {[%clk 0:02:57]} 7... Be6 {[%clk 0:02:28.9]} 8. Nc4 {[%clk
0:02:46.3]} 8... Rc8 {[%clk 0:02:25.8]} 9. Ne3 {[%clk 0:02:45.4]} 9... Nd4
{[%clk 0:02:26.2]} 10. Bd3 {[%clk 0:02:41.3]} 10... Be7 {[%clk 0:02:20]} 11. O-O
{[%clk 0:02:38.9]} 11... O-O {[%clk 0:02:20]} 12. Ncd5 {[%clk 0:02:32.5]} 12...
Nxd5 {[%clk 0:01:39.1]} 13. exd5 {[%clk 0:02:33.4]} 13... Bd7 {[%clk 0:01:36.6]}
14. a4 {[%clk 0:02:01.3]} 14... g6 {[%clk 0:00:58.1]} 15. c3 {[%clk 0:01:57.7]}
15... Nf5 {[%clk 0:00:58.4]} 16. Bxf5 {[%clk 0:01:36.1]} 16... Bxf5 {[%clk
0:00:51]} 17. Nxf5 {[%clk 0:01:33.2]} 17... gxf5 {[%clk 0:00:51.9]} 18. Bh6
{[%clk 0:01:25.8]} 18... Re8 {[%clk 0:00:51.9]} 19. Qh5 {[%clk 0:01:23.9]} 19...
Qd7 {[%clk 0:00:47.5]} 20. Rfe1 {[%clk 0:01:02.7]} 20... Rc4 {[%clk 0:00:27.5]}
21. Re3 {[%clk 0:00:47.3]} 21... Rg4 {[%clk 0:00:18.8]} 22. Rf3 {[%clk
0:00:27.6]} 22... f4 {[%clk 0:00:14.7]} 23. Rh3 {[%clk 0:00:27]} 23... Bf6
{[%clk 0:00:09.9]} 24. Re1 {[%clk 0:00:18.6]} 24... Rc8 {[%clk 0:00:05.4]} 25.
Kh1 {[%clk 0:00:05.3]} 25... Rg6 {[%clk 0:00:05.2]} 26. g3 {[%clk 0:00:04.1]}
26... fxg3 {[%clk 0:00:02]} 27. Rxg3 {[%clk 0:00:02.4]} 27... Qe7 {[%clk
0:00:01.6]} 28. Reg1 {[%clk 0:00:02.2]} 28... Bg7 {[%clk 0:00:01.9]} 29. Bxg7
{[%clk 0:00:01.4]} 29... Kxg7 {[%clk 0:00:02.8]} 30. Qf5 {[%clk 0:00:02]} 30...
Rf8 {[%clk 0:00:02.3]} 31. b3 {[%clk 0:00:01.7]} 31... e4 {[%clk 0:00:02.9]} 32.
Qf4 {[%clk 0:00:01.9]} 32... Re8 {[%clk 0:00:03.2]} 33. Qe3 {[%clk 0:00:02.3]}
33... Qe5 {[%clk 0:00:03.5]} 34. c4 {[%clk 0:00:03]} 34... f5 {[%clk 0:00:02.2]}
35. Rxg6+ {[%clk 0:00:01.5]} 35... hxg6 {[%clk 0:00:03.1]} 36. Qg5 {[%clk
0:00:02.1]} 36... Qf6 {[%clk 0:00:03.7]} 37. Qf4 {[%clk 0:00:02.4]} 37... Rh8
{[%clk 0:00:04]} 38. Rg3 {[%clk 0:00:02.2]} 38... Rh4 {[%clk 0:00:04]} 39. Qd2
{[%clk 0:00:02.2]} 39... Qe5 {[%clk 0:00:04]} 40. Kg2 {[%clk 0:00:02.6]} 40...
Rh5 {[%clk 0:00:04.1]} 41. Rh3 {[%clk 0:00:01.7]} 41... Rxh3 {[%clk 0:00:03.8]}
42. Kxh3 {[%clk 0:00:02.6]} 42... f4 {[%clk 0:00:04.6]} 43. Kg2 {[%clk
0:00:02.6]} 43... e3 {[%clk 0:00:04.6]} 44. fxe3 {[%clk 0:00:02.8]} 44... fxe3
{[%clk 0:00:05.5]} 45. Qe2 {[%clk 0:00:03.5]} 45... Qe4+ {[%clk 0:00:06.2]} 46.
Kg3 {[%clk 0:00:03.4]} 46... a5 {[%clk 0:00:04.8]} 47. Qf3 {[%clk 0:00:03]}
47... Qe5+ {[%clk 0:00:04.5]} 48. Kh3 {[%clk 0:00:01.5]} 48... e2 {[%clk
0:00:04.9]} 49. Qg4 {[%clk 0:00:01.2]} 49... e1=Q {[%clk 0:00:05]} 50. Qd7+
{[%clk 0:00:01.5]} 50... Qe7 {[%clk 0:00:05.4]} 0-1

[Event "Early-Titled-Tuesday-Blitz-April-02-2024"]
[Site "Chess.com"]
[Date "2024.04.02"]
[Round "4"]
[White "Tugrik1969"]
[Black "NikitaShnadrygin"]
[Result "0-1"]
[WhiteElo "2549"]
[BlackElo "2687"]
[TimeControl "180+1"]
[EndTime "8:39:35 PDT"]
[Termination "NikitaShnadrygin won on time"]

1. d4 {[%clk 0:03:00.9]} 1... d5 {[%clk 0:02:56.6]} 2. c4 {[%clk 0:02:58.8]}
2... Nc6 {[%clk 0:02:57.5]} 3. Nc3 {[%clk 0:02:56.7]} 3... dxc4 {[%clk
0:02:57.7]} 4. Nf3 {[%clk 0:02:56.8]} 4... Nf6 {[%clk 0:02:57.3]} 5. h3 {[%clk
0:02:55.7]} 5... Bf5 {[%clk 0:02:40.1]} 6. d5 {[%clk 0:02:54.9]} 6... Na5 {[%clk
0:02:20.9]} 7. Qa4+ {[%clk 0:02:37.9]} 7... c6 {[%clk 0:02:20.5]} 8. b4 {[%clk
0:02:38.5]} 8... b5 {[%clk 0:02:16.9]} 9. Qxa5 {[%clk 0:02:38.2]} 9... Qxa5
{[%clk 0:02:17.2]} 10. bxa5 {[%clk 0:02:39.1]} 10... b4 {[%clk 0:02:18.1]} 11.
e4 {[%clk 0:02:21.4]} 11... bxc3 {[%clk 0:02:08.1]} 12. exf5 {[%clk 0:02:20.9]}
12... cxd5 {[%clk 0:02:08.8]} 13. Ba3 {[%clk 0:01:43.9]} 13... Rb8 {[%clk
0:01:43]} 14. Be2 {[%clk 0:01:22.8]} 14... g6 {[%clk 0:01:32.4]} 15. fxg6 {[%clk
0:01:15.2]} 15... hxg6 {[%clk 0:01:30.7]} 16. O-O {[%clk 0:01:13.7]} 16... e6
{[%clk 0:01:10.3]} 17. Bxf8 {[%clk 0:01:12]} 17... Rxf8 {[%clk 0:01:09]} 18.
Rfc1 {[%clk 0:01:06.3]} 18... Ne4 {[%clk 0:01:03.8]} 19. Nd4 {[%clk 0:01:02.6]}
19... Rb2 {[%clk 0:00:58.6]} 20. Bf3 {[%clk 0:00:48.9]} 20... Nxf2 {[%clk
0:00:53.2]} 21. Rxc3 {[%clk 0:00:47.1]} 21... Ke7 {[%clk 0:00:43.9]} 22. Re1
{[%clk 0:00:39.1]} 22... Nd3 {[%clk 0:00:41.1]} 23. Re2 {[%clk 0:00:37.8]} 23...
Rb1+ {[%clk 0:00:37.4]} 24. Kh2 {[%clk 0:00:37.1]} 24... Kf6 {[%clk 0:00:34.4]}
25. Nc6 {[%clk 0:00:23.7]} 25... a6 {[%clk 0:00:29.4]} 26. a3 {[%clk 0:00:15.4]}
26... Rc8 {[%clk 0:00:25.8]} 27. Nb4 {[%clk 0:00:15.1]} 27... Nxb4 {[%clk
0:00:24.5]} 28. axb4 {[%clk 0:00:16]} 28... Rxb4 {[%clk 0:00:25.2]} 29. Rd2
{[%clk 0:00:13.7]} 29... Ke5 {[%clk 0:00:21.4]} 30. Re3+ {[%clk 0:00:11.1]}
30... Kd6 {[%clk 0:00:20.6]} 31. Rc3 {[%clk 0:00:10.3]} 31... Rcb8 {[%clk
0:00:17.1]} 32. Kg3 {[%clk 0:00:06.4]} 32... Kc5 {[%clk 0:00:17.6]} 33. Kf4
{[%clk 0:00:02.5]} 33... d4 {[%clk 0:00:17.2]} 34. Rc1 {[%clk 0:00:02.9]} 34...
c3 {[%clk 0:00:17.7]} 35. Rd3 {[%clk 0:00:01.9]} 35... f6 {[%clk 0:00:12.6]} 36.
g4 {[%clk 0:00:01.6]} 36... g5+ {[%clk 0:00:11.5]} 37. Kg3 {[%clk 0:00:01.9]}
37... Rd8 {[%clk 0:00:09.6]} 38. Rdxc3+ {[%clk 0:00:01.9]} 38... dxc3 {[%clk
0:00:09.8]} 39. Rxc3+ {[%clk 0:00:02.8]} 39... Kd4 {[%clk 0:00:08.7]} 40. Rc1
{[%clk 0:00:02.5]} 40... Ke5 {[%clk 0:00:06.2]} 41. Re1+ {[%clk 0:00:02.5]}
41... Kd6 {[%clk 0:00:06.6]} 42. Rd1+ {[%clk 0:00:02.8]} 42... Ke7 {[%clk
0:00:07.3]} 43. Rc1 {[%clk 0:00:03.3]} 43... Ra4 {[%clk 0:00:07.2]} 44. Rc5
{[%clk 0:00:03.1]} 44... Ra3 {[%clk 0:00:06]} 45. Rc7+ {[%clk 0:00:01.4]} 45...
Kf8 {[%clk 0:00:05.7]} 0-1